Workbook

Sheet MYP, MSS
B1: Jukka Salmela | E1: 18.1.1977
B2: YKKÖSPESIS | E2: Runkosarja | L2: Runkosarja TOP-10 | Q2: Jatkosarjat | X2: SUOMENSARJA | AA2: Runkosarja | AH2: Runkosarja TOP-10 | AM2: Jatkosarjat
B3: Vuosi | C3: Sija | D3: Seura | E3: OTT | F3: KUN | G3: LÖI | H3: TOI | I3: KL | J3: KL-% | L3: LÖI | M3: TOI | N3: L+T | O3: KL | Q3: OTT | R3: KUN | S3: LÖI | T3: TOI | U3: KL | V3: KL-% | X3: Vuosi | Y3: Sija | Z3: Seura | AA3: OTT | AB3: KUN | AC3: LÖI | AD3: TOI | AE3: KL | AF3: KL-% | AH3: LÖI | AI3: TOI | AJ3: L+T | AK3: KL | AM3: OTT | AN3: KUN | AO3: LÖI | AP3: TOI | AQ3: KL | AR3: KL-%
X4: 1995 | Y4: 1. | Z4: HalTo
B5: 1996 | C5: 13. | D5: HalTo | E5: 7 | F5: 0 | G5: 0 | H5: 1 | I5: 11
X6: 1997 | Y6: 8. | Z6: HalTo
X7: 1998 | Y7: 4. | Z7: VetU
X8: 1999 | Y8: 2. | Z8: VetU
B9: 2001 | C9: 11. | D9: VePe | E9: 26 | F9: 0 | G9: 2 | H9: 18 | I9: 96 | J9: 55.2 % | K9: 174 | X9: 2000 | Y9: 1. | Z9: VetU
B10: 2002 | C10: 9. | D10: VePe | E10: 21 | F10: 0 | G10: 0 | H10: 16 | I10: 58 | J10: 52.3 % | K10: 111
X12: 2005 | Y12: 2. | Z12: KoKi | AA12: 18 | AB12: 0 | AC12: 4 | AD12: 29 | AE12: 94 | AF12: 71.8 % | AG12: 131 | AI12: 7. | AK12: 7. | AM12: 2 | AN12: 0 | AO12: 0 | AP12: 0 | AQ12: 6 | AR12: 37.5 % | AS12: 16
B13: 2006 | C13: 8. | D13: PuMu | E13: 20 | F13: 0 | G13: 3 | H13: 10 | I13: 59 | J13: 50.0 % | K13: 118
B14: 2007 | C14: 15. | D14: PuMu | E14: 20 | F14: 1 | G14: 4 | H14: 10 | I14: 86 | J14: 59.3 % | K14: 145
B15: YHTEENSÄ | E15: =SUM(E4:E14) -> 94 | F15: =SUM(F4:F14) -> 1 | G15: =SUM(G4:G14) -> 9 | H15: =SUM(H4:H14) -> 55 | I15: =SUM(I4:I14) -> 310 | J15: 0.0 % | K15: =SUM(K4:K14) -> 548 | Q15: =SUM(Q4:Q14) -> 0 | R15: =SUM(R4:R14) -> 0 | S15: =SUM(S4:S14) -> 0 | T15: =SUM(T4:T14) -> 0 | U15: =SUM(U4:U14) -> 0 | V15: 0.0 % | W15: =SUM(W4:W14) -> 0 | X15: YHTEENSÄ | AA15: =SUM(AA4:AA14) -> 18 | AB15: =SUM(AB4:AB14) -> 0 | AC15: =SUM(AC4:AC14) -> 4 | AD15: =SUM(AD4:AD14) -> 29 | AE15: =SUM(AE4:AE14) -> 94 | AF15: =PRODUCT(AE15/AG15) -> 71.8 % | AG15: =SUM(AG4:AG14) -> 131 | AM15: =SUM(AM4:AM14) -> 2 | AN15: =SUM(AN4:AN14) -> 0 | AO15: =SUM(AO4:AO14) -> 0 | AP15: =SUM(AP4:AP14) -> 0 | AQ15: =SUM(AQ4:AQ14) -> 6 | AR15: =PRODUCT(AQ15/AS15) -> 37.5 % | AS15: =SUM(AS4:AS14) -> 16
B17: KAIKKI OTTELUT | E17: OTT | F17: KUN | G17: LÖI | H17: TOI | I17: KL | J17: KL-% | L17: ka/L | M17: ka/T | N17: ka/l+t | O17: ka/kl | R17: Seurat | T17: VetU = Vetelin Urheilijat (1947)
B18: SUPERPESIS | E18: 0 | F18: 0 | G18: 0 | H18: 0 | I18: 0 | J18: 0.0 % | K18: =PRODUCT(I18/J18) ->  | L18: 0.00 | M18: 0.00 | N18: 0.00 | O18: 0.00 | T18: HalTo = Halsuan Toivo (1909)
B19: YKKÖSPESIS | E19: =PRODUCT(E15+Q15) -> 94 | F19: =PRODUCT(F15+R15) -> 1 | G19: =PRODUCT(G15+S15) -> 9 | H19: =PRODUCT(H15+T15) -> 55 | I19: =PRODUCT(I15+U15) -> 310 | K19: =PRODUCT(K15+W15) -> 548 | L19: =PRODUCT((F19+G19)/E19) -> 0.11 | M19: =PRODUCT(H19/E19) -> 0.59 | N19: =PRODUCT((F19+G19+H19)/E19) -> 0.69 | O19: =PRODUCT(I19/87) -> 3.56 | T19: VePe = Veteli Pesis (2000)
B20: SUOMENSARJA | E20: =PRODUCT(AA15+AM15) -> 20 | F20: =PRODUCT(AB15+AN15) -> 0 | G20: =PRODUCT(AC15+AO15) -> 4 | H20: =PRODUCT(AD15+AP15) -> 29 | I20: =PRODUCT(AE15+AQ15) -> 100 | J20: =PRODUCT(I20/K20) -> 68.0 % | K20: =PRODUCT(AG15+AS15) -> 147 | L20: =PRODUCT((F20+G20)/E20) -> 0.20 | M20: =PRODUCT(H20/E20) -> 1.45 | N20: =PRODUCT((F20+G20+H20)/E20) -> 1.65 | O20: =PRODUCT(I20/E20) -> 5.00 | T20: KoKi = Kokkolan Kiri (1962)
B21: YHTEENSÄ | E21: =SUM(E18:E20) -> 114 | F21: =SUM(F18:F20) -> 1 | G21: 13 | H21: 84 | I21: 410 | K21: =SUM(K18:K20) ->  | L21: =PRODUCT((F21+G21)/E21) -> 0.12 | M21: =PRODUCT(H21/E21) -> 0.74 | N21: =PRODUCT((F21+G21+H21)/E21) -> 0.86 | O21: =PRODUCT(I21/107) -> 3.83 | T21: PuMu = Helsingin Puna-Mustat (1941)
